bitfinex-derivatives/quotes_ETHF0:USTF0_20250607
["timestamp","ask_amount","ask_price","bid_price","bid_amount"]
[1749255076516,0.80907,2470.1,2469.9,0.80912]
[1749255076715,3.2078,2470.0,2469.9,0.80912]
[1749255078020,4.01691,2470.0,2469.9,0.80912]
[1749255078220,3.2078,2470.0,2469.9,0.80912]
[1749255078724,0.80915,2469.8,2469.7,0.6723]
[1749255078924,0.8092,2469.7,2469.5,5.78824]
[1749255079124,3.2078,2469.6,2469.5,5.78824]
[1749255079420,1.3745,2469.9,2469.6,0.80922]
[1749255079421,5.39144,2469.9,2469.6,0.80922]
[1749255079620,0.6935,2469.8,2469.7,0.80918]
[1749255079818,3.2078,2469.9,2469.7,0.80917]
[1749255080018,3.2078,2469.9,2469.4,0.6587]
[1749255080019,0.80923,2469.6,2469.4,2.15138]
[1749255080220,3.2078,2469.6,2468.7,4.979]
[1749255080414,3.2078,2469.4,2468.8,1.9479]
[1749255080617,4.5823,2469.5,2468.9,2.02362]
[1749255080922,3.2078,2469.9,2469.2,2.02337]
[1749255081115,0.80916,2469.8,2469.6,0.8092]
[1749255081314,3.2078,2469.9,2469.3,6.4121]
[1749255081522,3.2078,2469.9,2469.8,0.80915]
[1749255082815,3.2078,2469.9,2469.4,6.3592]
[1749255083015,5.1627,2469.9,2469.4,6.3592]
[1749255083222,0.80918,2469.8,2469.4,6.3592]
[1749255083528,0.80915,2469.8,2469.4,6.3592]
[1749255083722,5.97183,2469.9,2469.7,0.80918]
[1749255083921,5.1627,2469.9,2469.4,6.3592]
[1749255084224,0.80915,2469.8,2469.7,0.80918]
[1749255084425,5.97184,2469.9,2469.7,0.80918]
[1749255085023,5.97184,2469.9,2469.8,0.80915]
[1749255085225,3.2078,2469.9,2469.8,0.80915]
[1749255086624,0.80916,2469.8,2469.6,5.88019]
[1749255086930,3.2078,2469.9,2469.6,5.071]
[1749255087431,4.01693,2469.9,2469.7,0.80918]
[1749255087614,3.2078,2469.9,2469.8,0.80915]
[1749255088227,3.2078,2469.9,2469.8,2.19415]
[1749255091221,3.2078,2469.9,2469.8,0.80915]
[1749255092031,3.2078,2469.9,2469.7,1.46907]
[1749255092221,3.2078,2469.9,2469.7,5.7309]
[1749255092527,3.2078,2469.9,2469.8,0.80915]
[1749255092829,3.2078,2469.9,2469.8,2.17895]
[1749255093731,4.49764864,2469.9,2469.8,0.80915]
[1749255099738,5.30676864,2469.9,2469.8,0.80915]
[1749255100035,2.02289,2469.8,2469.1,5.071]
[1749255100230,4.01708,2469.4,2469.3,1.49271]
[1749255100430,5.30694864,2469.4,2469.1,0.6942]
[1749255100630,1.28984864,2469.3,2469.2,0.80932]
[1749255100826,1.28984864,2469.3,2469.1,0.6942]
[1749255101135,1.28984864,2469.3,2469.0,5.7721]
[1749255101336,0.80935,2469.2,2469.1,0.80936]
[1749255101636,2.09919864,2469.2,2469.1,0.80936]
[1749255101835,1.28984864,2469.2,2469.1,0.80936]
[1749255102432,0.80938,2469.1,2469.0,1.3925]
[1749255102738,0.80941,2469.0,2468.9,5.88044]
[1749255102935,2.10149994,2469.0,2468.9,5.88044]
[1749255103135,1.29208994,2469.0,2468.9,5.88044]
[1749255103434,1.29208994,2469.0,2468.4,0.80958]
[1749255103435,11.36308994,2469.0,2468.4,0.80958]
[1749255103638,3.2078,2468.5,2468.4,0.80961]
[1749255103829,3.2078,2468.9,2468.8,0.80948]
[1749255104029,4.49826783,2468.9,2468.7,0.80948]
[1749255104236,0.80951,2468.7,2468.5,0.80955]
[1749255104430,4.49826783,2468.6,2468.3,5.071]
[1749255104632,3.2078,2468.6,2468.5,0.80958]
[1749255104826,4.50997216,2468.6,2468.5,0.80958]
[1749255105233,9.50997216,2468.6,2468.0,0.16059001]
[1749255105438,3.2078,2468.2,2468.1,0.80971]
[1749255105736,3.2078,2468.2,2468.1,3.47681]
[1749255106037,3.2078,2468.2,2468.0,0.16059001]
[1749255106233,4.0175,2468.2,2468.0,6.04233001]
[1749255106425,0.80971,2468.1,2468.0,0.16059001]
[1749255106631,3.2078,2468.2,2468.0,0.16059001]
[1749255106835,0.80971,2468.1,2468.0,0.16059001]
[1749255107035,3.40712341,2468.1,2468.0,0.16059001]
[1749255107740,1.29851341,2468.1,2468.0,0.97033001]
[1749255107937,3.2078,2468.2,2468.0,0.16059001]
[1749255108130,1.29750941,2468.1,2468.0,0.16059001]
[1749255108330,3.40611941,2468.1,2468.0,0.16059001]
[1749255108530,1.29750941,2468.1,2468.0,0.97033001]
[1749255109338,3.2078,2468.2,2468.1,0.80971]
[1749255109737,3.2078,2468.2,2468.1,2.14011]
[1749255110542,3.2078,2468.7,2468.3,2.02411]
[1749255110738,3.2078,2468.7,2468.6,0.80954]
[1749255110938,4.49623372,2468.7,2468.6,0.80954]
[1749255111636,3.2078,2468.7,2468.6,0.80954]
[1749255113941,0.80959,2468.5,2468.3,0.80963]
[1749255114239,1.2664,2468.6,2468.4,0.80959]
[1749255114442,1.2664,2468.6,2468.5,0.80958]
[1749255114943,2.07594,2468.6,2468.4,0.80959]
[1749255115342,1.2664,2468.6,2468.5,0.80958]
[1749255116342,2.07594,2468.6,2468.5,0.80958]
[1749255116541,1.2664,2468.6,2468.5,0.80958]
[1749255117242,0.80963,2468.4,2468.2,5.98666]
[1749255117449,0.80963,2468.4,2468.2,5.177]
[1749255117450,4.01743,2468.4,2468.2,5.177]
[1749255117745,3.2078,2468.4,2468.3,0.80964]
[1749255118343,3.2078,2468.4,2468.2,5.177]
[1749255118650,3.2078,2468.4,2468.3,0.80964]
[1749255118850,4.01741,2468.4,2468.3,0.80964]
[1749255119149,3.2078,2468.4,2468.3,0.80964]
[1749255119341,4.01741,2468.4,2468.3,0.80964]
[1749255119845,3.2078,2468.4,2468.3,0.80964]
[1749255120144,8.2078,2468.4,2468.0,0.16059001]
[1749255120447,3.2078,2468.1,2468.0,0.97031001]
[1749255121045,4.01751,2468.1,2468.0,0.16059001]
[1749255121544,4.01751,2468.1,2468.0,0.97033001]
[1749255121943,3.2078,2468.1,2468.0,0.97033001]
[1749255122347,4.01751,2468.1,2468.0,0.97033001]
[1749255123242,3.2078,2468.1,2468.0,0.97033001]
[1749255123943,3.2078,2468.1,2468.0,6.14833001]
[1749255124249,3.2078,2468.4,2468.3,0.80964]
[1749255124750,4.01743,2468.4,2468.1,1.3785]
[1749255125243,4.01741,2468.4,2468.3,0.80964]
[1749255125644,3.2078,2468.4,2468.3,0.80964]
[1749255128845,3.2078,2468.4,2468.1,1.3785]
[1749255129046,3.2078,2468.4,2468.2,0.80966]
[1749255129253,0.80964,2468.3,2468.2,5.177]
[1749255129544,0.80965,2468.3,2468.0,0.16059001]
[1749255129748,3.2078,2468.4,2468.0,0.97031001]
[1749255130049,2.10129548,2468.3,2468.1,0.8097]
[1749255130248,0.80964,2468.3,2468.1,0.8097]
[1749255130449,0.80964,2468.3,2468.0,0.16059001]
[1749255130642,0.80964,2468.3,2468.2,0.80967]
[1749255130848,2.10208739,2468.3,2468.2,0.80967]
[1749255131051,0.80971,2468.1,2468.0,0.16059001]
[1749255131253,0.80971,2468.1,2468.0,0.97033001]
[1749255131442,0.6592,2468.3,2468.0,0.16059001]
[1749255131752,4.01751,2468.1,2468.0,0.16059001]
[1749255131948,5.31064789,2468.1,2468.0,0.16059001]
[1749255132347,9.50093789,2468.1,2467.1,3.2078]
[1749255132550,3.2078,2467.7,2467.6,0.80987]
[1749255132846,1.29313789,2467.7,2467.2,7.0962]
[1749255133047,1.29286972,2467.6,2467.5,0.80988]
[1749255133346,1.29286972,2467.6,2465.8,3.2078]
[1749255133552,1.29286972,2467.6,2466.2,3.2078]
[1749255133553,3.2078,2466.8,2466.2,3.2078]
[1749255133755,3.2078,2466.8,2466.7,0.81017]
[1749255133954,3.2078,2467.4,2466.5,8.3858]
[1749255134253,1.28846156,2467.3,2467.1,0.81001]
[1749255134443,4.5395,2467.4,2466.6,1.3395]
[1749255134649,3.2078,2467.7,2466.9,3.2078]
[1749255134850,1.28804465,2467.6,2467.5,0.80988]
[1749255135243,1.28804465,2467.6,2466.9,3.2078]
[1749255135244,6.28804465,2467.6,2466.9,3.2078]
[1749255135560,3.2078,2467.2,2467.0,0.81007]
[1749255135849,3.2078,2467.2,2467.1,0.81004]
[1749255136247,1.3317,2467.5,2467.4,0.80994]
[1749255136452,1.28743914,2467.5,2467.3,0.80995]
[1749255136649,3.2078,2467.6,2467.4,0.80993]
[1749255136845,3.2078,2467.6,2467.0,1.955]
[1749255137052,0.00607398,2467.8,2467.5,0.80988]
[1749255137353,1.28575135,2467.7,2467.6,0.80987]
[1749255137547,1.28575135,2467.7,2467.5,0.80988]
[1749255137754,0.81588398,2467.8,2467.5,0.80988]
[1749255137952,1.28558291,2467.7,2467.5,0.80988]
[1749255138152,0.80999,2467.3,2466.7,5.178]
[1749255138459,3.2078,2467.2,2467.1,0.81003]
[1749255139158,3.2078,2467.2,2466.8,1.3203]
[1749255139554,3.2078,2467.2,2467.0,0.81006]
[1749255140154,3.2078,2467.2,2466.8,1.3203]
[1749255140551,4.01781,2467.2,2467.0,0.81007]
[1749255140757,4.01781,2467.2,2466.8,1.3203]
[1749255140958,4.01781,2467.2,2466.9,0.8101]
[1749255141159,4.01781,2467.2,2467.0,0.81007]
[1749255141347,0.81006,2467.1,2466.9,0.81008]
[1749255141554,0.81006,2467.1,2466.9,0.81009]
[1749255142453,4.01782,2467.2,2467.0,0.81007]
[1749255143453,0.81006,2467.1,2466.9,0.81009]
[1749255143651,0.81009,2467.0,2466.8,1.3203]
[1749255143861,0.8101,2466.9,2466.8,1.3203]
[1749255144451,0.81013,2466.8,2466.7,5.8127]
[1749255145157,3.2078,2466.9,2466.7,5.8127]
[1749255145459,3.2078,2466.9,2466.8,0.81013]
[1749255145657,3.2078,2466.9,2466.8,2.11473]
[1749255146357,3.2078,2466.9,2466.4,0.81025]
[1749255146358,0.81022,2466.6,2466.4,0.81025]
[1749255146659,0.81025,2466.5,2466.3,0.81029]
[1749255146956,2.0256,2466.5,2465.5,3.2078]
[1749255147156,3.2078,2466.2,2465.6,5.268]
[1749255147356,3.2078,2466.2,2466.1,0.81036]
[1749255148558,3.2078,2466.2,2466.0,0.81038]
[1749255148755,4.01814,2466.2,2466.0,6.07938]
[1749255149156,3.2078,2466.2,2466.1,0.81036]
[1749255149356,0.81041,2466.0,2465.8,0.81043]
[1749255149558,0.81048,2465.8,2465.4,5.269]
[1749255149853,0.81048,2465.8,2465.6,0.81052]
[1749255150054,3.2078,2465.9,2465.7,0.81049]
[1749255150262,3.2078,2465.9,2465.4,6.546]
[1749255150459,3.2078,2465.9,2465.8,0.81046]
[1749255150962,3.8541,2466.2,2466.0,0.81039]
[1749255151264,3.8541,2466.2,2465.6,7.1943]
[1749255151265,3.2078,2466.2,2465.6,7.1943]
[1749255151457,3.2078,2466.2,2466.0,0.81039]
[1749255151458,4.01815,2466.2,2466.0,0.81039]
[1749255151658,3.2078,2466.2,2465.6,7.1943]
[1749255151965,3.2078,2466.2,2466.1,0.81036]
[1749255153765,0.81038,2466.1,2465.9,0.81041]
[1749255153957,0.81039,2466.1,2465.9,0.81041]
[1749255154463,4.01816,2466.2,2465.7,5.27]
[1749255154665,4.01816,2466.2,2466.0,0.81037]
[1749255154857,3.2078,2466.2,2466.1,0.81036]
[1749255156671,4.01813,2466.2,2466.1,0.81036]
[1749255156970,3.2078,2466.2,2466.1,0.81036]
[1749255158065,3.21387398,2466.6,2466.5,0.81023]
[1749255158263,3.21387398,2466.6,2466.2,1.3361]
[1749255158469,3.21387398,2466.6,2466.3,2.07708]
[1749255158662,0.81026,2466.4,2466.3,2.07708]
[1749255159066,3.21387398,2466.6,2466.3,2.07708]
[1749255159067,0.81026,2466.5,2466.3,2.07708]
[1749255159469,0.81026,2466.4,2466.3,1.2668]
[1749255159869,0.8103,2466.3,2466.2,2.14643]
[1749255160172,3.21387398,2466.6,2466.2,2.14643]
[1749255160173,0.81029,2466.4,2466.3,0.8103]
[1749255160373,0.8103,2466.3,2466.2,2.14642]
[1749255160566,0.81029,2466.4,2466.3,0.8103]
[1749255161070,2.09094575,2466.4,2466.3,0.8103]
[1749255161367,0.81027,2466.4,2466.3,0.81027]
[1749255161562,1.28165624,2466.5,2466.2,1.3361]
[1749255161763,1.28165624,2466.4,2466.3,0.8103]
[1749255161973,2.09191624,2466.4,2466.3,0.8103]
[1749255162777,0.8103,2466.3,2466.2,3.46621]
[1749255162965,0.81029,2466.4,2466.3,0.8103]
[1749255163167,2.09229874,2466.4,2466.3,0.8103]
[1749255163367,0.81038,2466.1,2466.0,0.81038]
[1749255163561,3.2078,2466.2,2466.1,0.81036]
[1749255163971,4.01806,2466.5,2466.4,0.81026]
[1749255164269,0.00607398,2466.6,2466.5,0.81023]
[1749255164974,0.00607398,2466.6,2466.5,2.16393]
[1749255166469,1.28905294,2466.6,2466.5,2.16393]
[1749255166675,0.00607398,2466.6,2466.5,2.16393]
[1749255166875,0.00607398,2466.6,2466.5,7.43393]
[1749255177078,0.81627398,2466.6,2466.5,7.43393]
[1749255177281,0.81627398,2466.6,2466.5,5.27]
[1749255177585,2.10213787,2466.6,2466.5,5.27]
[1749255177784,0.81033,2466.2,2466.1,29.806]
[1749255177981,0.81033,2466.2,2466.1,30.61636]
[1749255180388,0.81033,2466.2,2466.1,29.806]
[1749255180690,1.28579881,2466.2,2465.8,6.09844]
[1749255180887,4.01822,2466.0,2465.9,0.81043]
[1749255181085,4.01822,2466.0,2465.8,6.09844]
[1749255182197,3.2078,2466.0,2465.8,5.288]
[1749255182493,3.2078,2466.0,2465.9,0.81043]
[1749255185693,3.2078,2466.3,2465.9,0.81043]
[1749255185991,3.21387398,2466.6,2466.0,4.5882]
[1749255186193,3.21387398,2466.6,2466.1,1.3656]
[1749255186394,0.81033,2466.2,2466.1,1.3656]
[1749255186594,0.81033,2466.2,2466.1,6.6536]
[1749255186995,0.81033,2466.2,2466.1,7.46396]
[1749255187293,0.81033,2466.2,2466.1,6.6536]
[1749255188293,0.81033,2466.2,2466.1,5.288]
[1749255188487,0.81044,2465.9,2465.8,6.09845]
[1749255188692,4.01822,2466.0,2465.8,6.09845]
[1749255188996,0.81043,2465.9,2465.8,6.09845]
[1749255190203,3.2078,2466.0,2465.4,29.75027]
[1749255190497,0.81056,2465.5,2465.4,0.81058]
[1749255190697,0.81056,2465.5,2465.4,0.81059]
[1749255191002,0.81055,2465.6,2465.3,5.289]
[1749255191305,0.81056,2465.5,2465.4,0.81058]
[1749255191598,0.81055,2465.6,2465.4,0.81058]
[1749255191801,3.2078,2465.7,2465.3,5.289]
[1749255192000,3.2078,2465.7,2465.5,0.81053]
[1749255192001,4.01831,2465.7,2465.5,0.81053]
[1749255192304,0.81054,2465.6,2465.4,0.81059]
[1749255192504,4.01832,2465.7,2465.5,0.81055]
[1749255193301,3.2078,2465.7,2465.3,5.289]
[1749255193602,0.81055,2465.6,2465.4,0.81058]
[1749255193798,4.01831,2465.7,2465.5,0.81056]
[1749255194000,3.2078,2465.7,2465.6,0.81053]
[1749255194696,3.8436,2466.3,2466.2,0.81033]
[1749255194893,3.2078,2466.3,2465.9,5.289]
[1749255195093,4.01812,2466.3,2466.1,0.81035]
[1749255195494,3.2078,2466.3,2465.9,5.289]
[1749255195699,0.81035,2466.2,2466.1,0.81036]
[1749255195895,4.01812,2466.3,2466.1,0.81036]
[1749255196100,3.2078,2466.3,2466.2,0.81033]
[1749255197301,0.00607398,2466.6,2466.5,0.81023]
[1749255197502,0.00607398,2466.6,2466.5,6.09923]
[1749255198699,0.81023,2466.5,2466.3,2.17018]
[1749255198902,0.81628398,2466.6,2466.4,0.81025]
[1749255199506,0.81023,2466.5,2466.3,2.17018]
[1749255199703,3.2078,2466.4,2465.9,5.288]
[1749255199900,3.2078,2466.4,2466.3,0.8103]
[1749255201309,0.81023,2466.5,2466.4,0.81026]
[1749255201606,2.22120398,2466.6,2466.4,0.81026]
[1749255201808,2.22120398,2466.6,2466.0,4.69415]
[1749255202009,2.22120398,2466.6,2466.4,0.81024]
[1749255202209,2.22120398,2466.6,2466.0,4.69415]
[1749255202210,2.07897398,2466.6,2466.0,2.6682]
[1749255202409,4.01808,2466.4,2466.2,0.81032]
[1749255202599,3.2078,2466.4,2466.3,0.8103]
[1749255202804,3.2078,2466.4,2466.0,2.6682]
[1749255203004,4.5449,2466.4,2466.0,1.3551]
[1749255203211,0.81033,2466.2,2466.1,5.234]
[1749255203413,1.3371,2466.4,2465.9,5.234]
[1749255203414,3.2078,2466.1,2465.9,5.234]
[1749255203602,3.2078,2466.1,2466.0,0.8104]
[1749255204005,3.2078,2466.1,2465.9,5.234]
[1749255204006,4.01819,2466.1,2465.9,6.04441]
[1749255204310,3.2078,2466.1,2466.0,0.8104]
[1749255204513,4.01804,2466.5,2466.3,0.81029]
[1749255204713,1.28649644,2466.4,2466.3,0.81029]
[1749255204907,2.09675644,2466.4,2466.3,0.81029]
[1749255205412,1.28649644,2466.4,2466.3,0.81029]
[1749255206497,1.28649644,2466.4,2466.2,0.81032]
[1749255206498,0.81031,2466.3,2466.2,0.81032]
[1749255206703,1.28649644,2466.3,2466.2,0.81032]
[1749255206906,0.81027,2466.4,2466.3,0.8103]
[1749255207106,2.09709023,2466.4,2466.3,0.8103]
[1749255208212,1.28682023,2466.4,2466.3,0.8103]
[1749255208710,3.2078,2466.5,2466.4,0.81026]
[1749255209007,0.00607398,2466.6,2466.5,0.81023]
[1749255209708,0.00607398,2466.6,2466.5,2.19063]
[1749255219117,0.00607398,2466.6,2466.5,5.233]
[1749255219307,4.02407398,2466.6,2466.5,5.233]
[1749255219711,0.81026,2466.4,2466.3,0.0712]
[1749255220114,2.0950923,2466.4,2466.1,0.81034]
[1749255220420,3.2078,2466.3,2466.2,0.81033]
[1749255222115,9.49340673,2466.3,2465.3,3.2078]
[1749255222319,9.49340673,2466.3,2465.6,0.81053]
[1749255222320,3.2078,2465.7,2465.6,0.81053]
[1749255222814,3.2078,2466.1,2465.5,7.25934]
[1749255223020,1.28547346,2466.0,2465.9,0.81042]
[1749255223408,3.2078,2466.1,2466.0,0.8104]
[1749255224019,3.2078,2466.1,2466.0,1.4624]
[1749255224616,0.00607398,2466.6,2466.0,0.652]
[1749255224820,0.00607398,2466.6,2466.4,0.81026]
[1749255225024,0.00607398,2466.6,2466.4,5.234]
[1749255225321,0.81628398,2466.6,2466.3,6.04428]
[1749255225520,2.20278398,2466.6,2466.3,6.04428]
[1749255225920,1.39257398,2466.6,2466.4,0.81026]
[1749255226117,2.20277398,2466.6,2466.3,6.04428]
[1749255226824,2.20278398,2466.6,2466.3,6.04428]
[1749255227523,2.20278398,2466.6,2466.4,0.81026]
[1749255227830,0.00607398,2466.6,2466.3,5.234]
[1749255228024,0.00607398,2466.6,2466.5,0.81023]
[1749255228224,0.00607398,2466.6,2466.3,5.234]
[1749255228425,0.00607398,2466.6,2466.5,0.81023]
[1749255230821,0.00607398,2466.6,2466.5,6.04423]
[1749255231720,0.00607398,2466.6,2466.4,0.81025]
[1749255231921,4.01806,2466.5,2466.4,5.172]
[1749255232132,3.2078,2466.5,2466.4,5.98226]
[1749255232317,3.2078,2466.5,2466.3,0.81028]
[1749255232318,4.01805,2466.5,2466.3,0.81028]
[1749255232524,4.01806,2466.5,2466.3,5.98229]
[1749255233527,4.01806,2466.5,2466.4,0.81026]
[1749255233724,5.33588039,2466.5,2466.4,0.81026]
[1749255233926,4.52562039,2466.5,2466.4,0.81026]
[1749255234232,5.33585039,2466.5,2466.4,0.81026]
[1749255234831,4.52562039,2466.5,2466.4,0.81026]
[1749255235229,5.33586039,2466.5,2466.3,5.98227]
[1749255235429,3.2078,2466.5,2466.4,0.81026]
[1749255235630,4.52575773,2466.5,2466.4,0.81026]
[1749255235823,5.33600773,2466.5,2466.3,5.98228]
[1749255236025,4.01805,2466.5,2466.3,5.98228]
[1749255236322,4.01805,2466.5,2464.8,0.4046]
[1749255236323,0.81043,2465.9,2465.8,0.0712]
[1749255236627,0.81043,2465.9,2465.1,2.02667]
[1749255236628,0.81052,2465.7,2465.1,2.02667]
[1749255236820,4.52563785,2465.6,2465.1,2.02667]
[1749255237020,3.2078,2465.6,2465.5,0.81056]
[1749255237222,4.52435185,2465.6,2465.5,0.81056]
[1749255237416,4.52435185,2465.6,2465.2,1.3347]
[1749255237630,4.01834,2465.6,2465.3,0.81063]
[1749255237830,4.01834,2465.6,2465.4,0.81059]
[1749255238524,4.01834,2465.6,2465.2,1.3347]
[1749255238727,4.01834,2465.6,2465.4,0.81059]
[1749255239029,4.01834,2465.6,2465.3,0.81061]
[1749255239328,3.2078,2465.6,2465.5,0.81056]
[1749255239533,2.15367,2465.8,2465.6,0.8105]
[1749255239731,2.15368,2465.8,2465.6,0.81053]
[1749255239922,1.3432,2465.8,2465.5,1.3347]
[1749255240127,0.81049,2465.7,2465.5,0.88166]
[1749255240532,2.15367,2465.8,2465.5,0.0711]
[1749255240734,2.15367,2465.8,2465.5,0.88164]
[1749255241224,3.2078,2465.6,2465.5,0.88164]
[1749255241832,3.2078,2465.6,2465.5,2.26984]
[1749255242026,3.2078,2465.9,2465.5,1.4593]
[1749255242222,3.2078,2465.9,2465.8,0.81046]
[1749255242535,0.81048,2465.8,2465.5,1.4593]
[1749255242735,0.81048,2465.8,2465.6,0.81053]
[1749255242934,4.01824,2465.9,2465.6,0.81053]
[1749255243126,0.81047,2465.8,2465.6,0.81053]
[1749255243530,4.01824,2465.9,2465.6,0.81053]
[1749255243931,3.2078,2465.9,2465.7,0.81048]
[1749255244434,3.2078,2465.9,2465.5,1.4593]
[1749255244630,3.2078,2465.9,2465.8,0.81046]
[1749255245023,3.2078,2465.9,2465.5,1.4593]
[1749255245230,3.2078,2465.9,2465.6,0.81051]
[1749255245430,3.2078,2465.9,2465.5,1.4593]
[1749255245736,3.2078,2465.6,2465.5,2.26986]
[1749255246036,3.2078,2465.6,2465.5,2.19876]
[1749255246534,4.01825,2465.9,2465.6,0.81051]
[1749255246935,4.01825,2465.9,2465.7,2.16239]
[1749255247135,4.01825,2465.9,2465.8,5.173]
[1749255247336,3.2078,2465.9,2465.8,5.98346]
[1749255247736,3.2078,2465.9,2465.8,6.63276]
[1749255248223,1.9902,2466.4,2466.0,0.81039]
[1749255248224,3.2078,2466.2,2466.0,0.81039]
[1749255248427,4.01814,2466.2,2466.0,0.81039]
[1749255248836,0.81037,2466.1,2465.9,2.16231]
[1749255249840,4.01815,2466.2,2466.0,0.8104]
[1749255250340,3.2078,2466.2,2466.1,0.81036]
[1749255251634,0.8104,2466.0,2465.8,1.53084]
[1749255251837,1.9902,2466.4,2465.8,5.2441]
[1749255251838,4.01823,2465.9,2465.8,5.2441]
[1749255252336,3.2078,2465.9,2465.8,6.05456]
[1749255253240,3.2078,2465.9,2465.8,5.98346]
[1749255254443,0.81047,2465.8,2465.6,0.6939]
[1749255254639,0.81053,2465.6,2465.5,5.173]
[1749255254835,4.01833,2465.6,2465.5,5.173]
[1749255255140,3.2078,2465.6,2465.5,5.98356]
[1749255255739,4.01833,2465.6,2465.5,5.173]
[1749255255939,5.42353,2465.6,2465.5,5.173]
[1749255256442,6.73982462,2465.6,2465.5,5.173]
[1749255256844,5.92929462,2465.6,2464.8,1.9151]
[1749255257045,5.92929462,2465.6,2465.1,0.81069]
[1749255257046,3.2078,2465.2,2465.1,0.81069]
[1749255258642,4.01847,2465.2,2465.1,5.173]
[1749255258842,4.01847,2465.2,2464.7,24.522]
[1749255258843,0.81073,2465.0,2464.3,2.02736]
[1749255259035,3.2078,2465.2,2463.6,4.21652001]
[1749255259036,0.81097,2464.3,2463.8,0.32333159]
[1749255259243,3.2078,2464.1,2463.6,3.36839001]
[1749255259436,3.21388655,2464.1,2464.0,0.81105]
[1749255259643,0.00608655,2464.1,2464.0,0.81105]
[1749255260336,0.00608655,2464.1,2464.0,3.47395]
[1749255260537,0.00608655,2464.1,2464.0,0.81105]
[1749255260937,0.00608655,2464.1,2464.0,7.34955]
[1749255262143,0.00608655,2464.1,2463.9,3.2078]
[1749255262340,0.00608655,2464.1,2463.6,0.16059001]
[1749255262341,3.2078,2464.0,2463.6,0.16059001]
[1749255262545,3.2078,2463.7,2463.6,0.16059001]
[1749255262753,3.2078,2463.7,2463.6,0.97178001]
[1749255263138,3.2078,2463.7,2463.6,0.16059001]
[1749255263343,0.6493,2463.9,2463.7,0.81112]
[1749255263650,1.46041,2463.9,2463.7,5.248]
[1749255263844,1.4031,2463.8,2463.7,5.248]
[1749255264046,1.46041,2463.9,2463.8,0.81112]
[1749255264047,0.6493,2463.9,2463.8,0.81112]
[1749255264244,0.6493,2463.9,2463.7,5.248]
[1749255264444,0.6493,2463.9,2463.7,6.05913]
[1749255264645,1.9203,2463.9,2463.7,0.81113]
[1749255264940,1.9203,2463.9,2463.6,5.40859001]
[1749255265248,3.2078,2463.7,2463.6,6.21978001]
[1749255268147,0.00608655,2464.1,2464.0,0.81105]
[1749255268750,0.00608655,2464.1,2464.0,6.06105]
[1749255270151,6.55e-06,2464.1,2464.0,6.73735]
[1749255270552,6.55e-06,2464.1,2464.0,6.06105]
[1749255273149,6.55e-06,2464.1,2464.0,0.81105]
[1749255274346,3.20780655,2464.1,2464.0,0.81105]
[1749255276055,6.55e-06,2464.1,2464.0,0.81105]
[1749255276253,6.55e-06,2464.1,2464.0,3.48325]
[1749255277758,6.55e-06,2464.1,2464.0,8.48325]
[1749255278951,6.55e-06,2464.1,2464.0,3.48325]
[1749255279152,6.55e-06,2464.1,2464.0,13.73325]
[1749255281460,6.55e-06,2464.1,2464.0,8.73325]
[1749255285862,6.55e-06,2464.1,2464.0,13.73325]
[1749255296773,5.00000655,2464.1,2464.0,0.81105]
[1749255297077,6.55e-06,2464.1,2464.0,6.02305]
[1749255297675,6.55e-06,2464.1,2464.0,9.23085]
[1749255298271,6.55e-06,2464.1,2464.0,4.01885]
[1749255298476,6.55e-06,2464.1,2464.0,9.23085]
[1749255299772,6.55e-06,2464.1,2464.0,10.54805]
[1749255299980,6.55e-06,2464.1,2464.0,11.23945]
[1749255300584,6.55e-06,2464.1,2464.0,16.23945]
[1749255302175,6.55e-06,2464.1,2464.0,9.23085]
[1749255302575,5.00000655,2464.1,2464.0,4.01885]
[1749255302776,6.55e-06,2464.1,2464.0,6.02305]
[1749255309389,6.55e-06,2464.1,2464.0,6.09385]
[1749255309884,6.55e-06,2464.1,2464.0,8.14705]
[1749255310876,6.55e-06,2464.1,2464.0,13.14705]
[1749255314488,2.6242,2464.9,2464.8,0.81079]
[1749255314683,1.325,2464.9,2464.8,9.23059]
[1749255315679,0.00608655,2465.1,2465.0,0.81072]
[1749255318191,1.3398,2465.3,2465.2,0.81066]
[1749255318387,1.3398,2465.3,2465.2,6.02266]
[1749255318595,3.2078,2465.4,2465.3,0.81063]
[1749255319886,3.8851,2465.4,2465.3,0.81063]
[1749255320798,0.00608655,2465.6,2465.5,0.81056]
[1749255323991,6.55e-06,2465.6,2465.5,0.81056]
[1749255328496,6.55e-06,2465.6,2465.5,2.15996]
[1749255333000,6.55e-06,2465.6,2465.5,0.81056]
[1749255333200,6.55e-06,2465.6,2465.5,6.09556]
[1749255334802,6.55e-06,2465.6,2465.5,6.16626]
[1749255337107,3.20780655,2465.6,2465.5,6.16626]
[1749255337904,6.55e-06,2465.6,2465.5,6.16626]
[1749255339305,8.20780655,2465.6,2465.5,0.0707]
[1749255339508,0.81061,2465.4,2465.3,0.81062]
[1749255339809,0.81066,2465.2,2465.1,0.00608655]
[1749255340009,4.01846,2465.2,2465.1,0.00608655]
[1749255340209,9.01846,2465.2,2465.1,0.00608655]
[1749255340404,10.19358185,2465.2,2464.9,0.81074]
[1749255340596,0.81072,2465.0,2464.9,0.81074]
[1749255341105,6.3878,2465.0,2464.9,0.81074]
[1749255343518,7.19852,2465.0,2464.9,0.81074]
[1749255343721,7.19852,2465.0,2464.8,6.09677]
[1749255343919,2.19852,2465.0,2464.9,0.81076]
[1749255344419,6.3878,2465.0,2464.9,0.81076]
[1749255345519,3.8757,2465.2,2464.8,5.286]
[1749255345824,3.8757,2465.2,2465.0,0.8107]
[1749255346025,3.8757,2465.2,2464.9,0.81073]